fUSD/lending_fUSD_20251212
["ID","MTS","AMOUNT","RATE_DAILY","PERIOD"]
[398295789,1765501838541,-1000.0,0.00034271,10]
[398295791,1765501838551,-500.0,0.00034271,10]
[398295793,1765501838562,-866.5,0.00034303,30]
[398295795,1765501838572,-1000.0,0.00034408,10]
[398295797,1765501838581,-1000.0,0.00034545,10]
[398295799,1765501838591,-1000.0,0.00034682,10]
[398295801,1765501838601,-1000.0,0.00034819,10]
[398295803,1765501838610,-1567.67,0.00034842,30]
[398295805,1765501838620,-1444.0,0.00034849,120]
[398295807,1765501838630,-166.66,0.00034898,30]
[398295809,1765501838639,-1000.0,0.00034956,10]
[398295811,1765501838649,-1000.0,0.00035093,10]
[398295813,1765501838658,-1000.0,0.000351,2]
[398295814,1765501838667,-1000.0,0.0003523,10]
[398295815,1765501838676,-250.0,0.00035317,2]
[398295816,1765501838686,-3301.913,0.00035342,41]
[398295817,1765501838695,-151.343,0.00035342,41]
[398295818,1765501838704,-1000.0,0.00035367,10]
[398295819,1765501838714,-500.0,0.00035444,7]
[398295820,1765501838723,-360.92045236,0.00035444,7]
[398295821,1765501838732,-500.0,0.00035444,7]
[398295822,1765501838741,-500.0,0.00035444,7]
[398295823,1765501838751,-500.0,0.00035444,7]
[398295824,1765501838761,-500.0,0.00035444,7]
[398295825,1765501838770,-500.0,0.00035444,7]
[398295826,1765501838779,-500.0,0.00035444,7]
[398295827,1765501838789,-500.0,0.00035444,7]
[398295828,1765501838798,-500.0,0.00035444,7]
[398295829,1765501838808,-500.0,0.00035444,7]
[398295830,1765501838817,-238.16572689,0.00035444,7]
[398295831,1765501838827,-500.0,0.00035444,7]
[398295832,1765501838836,-500.0,0.00035444,7]
[398295833,1765501838845,-500.0,0.00035444,7]
[398295834,1765501838858,-500.0,0.00035444,7]
[398295835,1765501838867,-500.0,0.00035444,7]
[398295836,1765501838877,-500.0,0.00035444,7]
[398295837,1765501838886,-500.0,0.00035444,7]
[398295838,1765501838896,-500.0,0.00035444,7]
[398295839,1765501838905,-500.0,0.00035444,7]
[398295840,1765501838914,-500.0,0.00035444,7]
[398295841,1765501838924,-500.0,0.00035444,7]
[398295842,1765501838933,-500.0,0.00035444,7]
[398295844,1765501838942,-392.94554057,0.00035444,7]
[398295845,1765501838951,-500.0,0.00035444,7]
[398295847,1765501838961,-500.0,0.00035444,7]
[398295849,1765501838970,-500.0,0.00035444,7]
[398295851,1765501838980,-500.0,0.00035444,7]
[398295853,1765501838990,-482.16872312,0.00035444,7]
[398295855,1765501838999,-500.0,0.00035444,7]
[398295857,1765501839010,-500.0,0.00035444,7]
[398295859,1765501839019,-500.0,0.00035444,7]
[398295862,1765501839030,-500.0,0.00035444,7]
[398295863,1765501839039,-456.79458874,0.00035444,7]
[398295865,1765501839049,-500.0,0.00035444,7]
[398295868,1765501839060,-500.0,0.00035444,7]
[398295869,1765501839070,-500.0,0.00035444,7]
[398295871,1765501839080,-500.0,0.00035444,7]
[398295873,1765501839090,-500.0,0.00035444,7]
[398295875,1765501839099,-500.0,0.00035444,7]
[398295877,1765501839108,-500.0,0.00035444,7]
[398295879,1765501839117,-500.0,0.00035444,7]
[398295881,1765501839127,-500.0,0.00035444,7]
[398295883,1765501839137,-500.0,0.00035444,7]
[398295885,1765501839146,-500.0,0.00035444,7]
[398295887,1765501839156,-500.0,0.00035444,7]
[398295889,1765501839166,-500.0,0.00035444,7]
[398295891,1765501839176,-500.0,0.00035444,7]
[398295893,1765501839185,-500.0,0.00035444,7]
[398295895,1765501839195,-500.0,0.00035444,7]
[398295897,1765501839205,-500.0,0.00035444,7]
[398295899,1765501839215,-215.93264042,0.00035446,7]
[398295901,1765501839224,-500.0,0.00035446,7]
[398295903,1765501839234,-382.05972537,0.00035446,7]
[398295905,1765501839244,-500.0,0.00035446,7]
[398295907,1765501839254,-353.06065645,0.00035446,7]
[398295910,1765501839264,-366.13715789,0.00035446,7]
[398295912,1765501839273,-327.30510479,0.00035446,7]
[398295914,1765501839283,-168.54036155,0.00035446,7]
[398295916,1765501839292,-54283.05,0.00035447,2]
[398295918,1765501839302,-200.0,0.00035504,2]
[398295920,1765501839311,-1000.0,0.00035504,10]
[398295922,1765501839321,-850.14,0.00035507,120]
[398295938,1765501839476,-150.0,0.00035534,2]
[398295940,1765501839486,-1197.0,0.00035569,7]
[398295942,1765501839495,-166.66,0.00035633,30]
[398295944,1765501839504,-1000.0,0.00035641,10]
[398295946,1765501839514,-5000.0,0.00035673,2]
[398295948,1765501839523,-1000.0,0.00035687,2]
[398295950,1765501839533,-1000.0,0.00035778,10]
[398295952,1765501839542,-683.12,0.00035903,2]
[398295954,1765501839551,-1000.0,0.00035915,10]
[398295956,1765501839562,-150.166,0.00035999,2]
[398295958,1765501839571,-1000.39,0.00036,30]
[398295960,1765501839580,-1197.0,0.00036009,2]
[398295962,1765501839589,-1000.0,0.00036052,10]
[398295964,1765501839598,-150.0,0.00036162,7]
[398295966,1765501839607,-150.0,0.00036162,7]
[398295968,1765501839616,-150.0,0.00036162,7]
[398295970,1765501839625,-150.0,0.00036162,7]
[398295972,1765501839634,-150.0,0.00036162,7]
[398295974,1765501839643,-150.0,0.00036162,7]
[398295976,1765501839652,-150.0,0.00036162,7]
[398295978,1765501839661,-150.0,0.00036162,7]
[398295980,1765501839670,-150.0,0.00036162,7]
[398295982,1765501839680,-207.53,0.00036162,7]
[398295984,1765501839689,-219.896,0.00036162,7]
[398295986,1765501839698,-177.367,0.00036162,120]
[398295988,1765501839708,-10000.0,0.0003617,120]
[398295990,1765501839717,-1000.0,0.00036189,10]
[398295992,1765501839727,-164.46332687,0.00036268,2]
[398295994,1765501839736,-1000.0,0.00036326,10]
[398295996,1765501839748,-1195.0,0.00036361,2]
[398295998,1765501839757,-166.66,0.00036368,30]
[398296000,1765501839767,-640.64,0.000364,30]
[398296003,1765501839777,-1000.0,0.000364,120]
[398296005,1765501839787,-1000.0,0.00036463,10]
[398296007,1765501839796,-1000.0,0.000366,10]
[398296009,1765501839806,-167.0,0.00036608,30]
[398296011,1765501839815,-18689.65,0.00036644,2]
[398296013,1765501839824,-1000.0,0.000367,7]
[398296015,1765501839833,-1000.39,0.0003672,30]
[398296017,1765501839842,-1000.0,0.00036737,10]
[398296019,1765501839855,-1195.0,0.00036779,7]
[398296021,1765501839864,-782.82126604,0.00036804,30]
[398296023,1765501839873,-170.65032945,0.00036804,30]
[398296025,1765501839882,-166.04,0.0003681,2]
[398296027,1765501839891,-271.5427343,0.00036822,2]
[398296029,1765501839901,-1196.0,0.00036823,7]
[398296031,1765501839910,-1000.0,0.00036874,10]
[398296033,1765501839921,-1000.0,0.00036874,10]
[398296035,1765501839931,-168.0,0.00036874,10]
[398296037,1765501839940,-164.46332683,0.00036892,2]
[398296039,1765501839949,-1195.0,0.00036902,2]
[398296041,1765501839958,-910.0,0.00036902,2]
[398296043,1765501839968,-1196.0,0.00036918,2]
[398296045,1765501839977,-500.0,0.00036986,60]
[398296047,1765501839986,-170.76,0.00036986,2]
[398296049,1765501839995,-500.0,0.00036999,30]
[398296051,1765501840006,-500.0,0.00036999,30]
[398296053,1765501840015,-500.0,0.00036999,30]
[398296055,1765501840025,-205.4,0.00037,2]
[398296057,1765501840034,-1000.0,0.00037011,10]
[398296061,1765501840042,-1000.0,0.00037011,10]
[398296063,1765501840051,-185.64,0.00037059,2]
[398296066,1765501840062,-166.66,0.00037102,30]
[398296069,1765501840072,-500.0,0.00037123,60]
[398296071,1765501840081,-1195.0,0.00037131,2]
[398296073,1765501840090,-1000.0,0.00037148,10]
[398296075,1765501840099,-1000.0,0.00037148,10]
[398296077,1765501840108,-1196.0,0.00037152,2]
[398296079,1765501840118,-354.38465604,0.000372,120]
[398296082,1765501840131,-354.38465603,0.000372,120]
[398296084,1765501840141,-354.38465603,0.000372,120]
[398296086,1765501840149,-354.38465603,0.000372,120]
[398296088,1765501840159,-500.0,0.0003726,60]
[398296090,1765501840168,-1000.0,0.00037285,10]
[398296092,1765501840177,-1000.0,0.00037285,10]
[398296094,1765501840187,-1034.92008,0.000373,120]
[398296096,1765501840196,-1195.0,0.00037366,120]
[398296098,1765501840205,-1195.0,0.00037374,2]
[398296100,1765501840214,-500.0,0.00037397,60]
[398296102,1765501840224,-1000.0,0.00037422,10]
[398296104,1765501840233,-1000.0,0.00037422,10]
[398296106,1765501840243,-1000.39,0.0003744,30]
[398296108,1765501840252,-500.0,0.0003744,2]
[398296110,1765501840262,-500.0,0.0003744,2]
[398296112,1765501840271,-500.0,0.0003744,2]
[398296114,1765501840281,-410.88719059,0.0003744,2]
[398296116,1765501840291,-1196.0,0.00037509,2]
[398296117,1765501840300,-164.46332683,0.00037515,2]
[398296119,1765501840310,-500.0,0.00037534,60]
[398296121,1765501840324,-1195.0,0.00037552,7]
[398296123,1765501840334,-1000.0,0.00037559,10]
[398296125,1765501840343,-1000.0,0.00037559,10]
[398296127,1765501840352,-1195.0,0.00037616,2]
[398296129,1765501840362,-1195.0,0.00037642,2]
[398296131,1765501840372,-1197.0,0.00037659,120]
[398296133,1765501840381,-500.0,0.00037671,60]
[398296135,1765501840390,-1000.0,0.00037696,10]
[398296136,1765501840399,-1000.0,0.00037696,10]
[398296138,1765501840409,-1196.0,0.00037729,2]
[398296140,1765501840419,-1195.0,0.00037753,7]
[398296142,1765501840428,-302.03528524,0.00037782,2]
[398296144,1765501840438,-303.15225682,0.00037782,2]
[398296146,1765501840447,-300.0,0.00037782,2]
[398296148,1765501840457,-300.0,0.00037782,2]
[398296150,1765501840466,-366.44578911,0.00037782,2]
[398296152,1765501840476,-300.0,0.00037782,2]
[398296154,1765501840486,-302.34110853,0.00037782,2]
[398296156,1765501840495,-300.0,0.00037782,2]
[398296158,1765501840505,-789.95822971,0.00037782,2]
[398296160,1765501840515,-300.0,0.00037782,2]
[398296163,1765501840529,-301.82840283,0.00037782,2]
[398296165,1765501840538,-300.0,0.00037782,2]
[398296167,1765501840547,-300.0,0.00037782,2]
[398296169,1765501840557,-508.84461059,0.00037782,2]
[398296171,1765501840567,-300.0,0.00037782,2]
[398296173,1765501840579,-300.0,0.00037782,2]
[398296175,1765501840588,-362.86119627,0.00037782,2]
[398296177,1765501840598,-593.23310907,0.00037782,2]
[398296179,1765501840607,-300.0,0.00037782,2]
[398296181,1765501840616,-300.0,0.00037782,2]
[398296183,1765501840625,-300.0,0.00037782,2]
[398296185,1765501840635,-302.03528524,0.00037782,2]
[398296187,1765501840644,-303.15225682,0.00037782,2]
[398296189,1765501840653,-300.0,0.00037782,2]
[398296191,1765501840662,-300.0,0.00037782,2]
[398296193,1765501840671,-366.44578911,0.00037782,2]
[398296195,1765501840681,-307.53450935,0.00037782,2]
[398296197,1765501840692,-598.83902946,0.00037782,2]
[398296199,1765501840702,-518.76222558,0.00037782,2]
[398296201,1765501840711,-1056.06248563,0.00037782,2]
[398296203,1765501840722,-356.08081355,0.00037782,2]
[398296205,1765501840731,-301.82840283,0.00037782,2]
[398296207,1765501840740,-307.24215601,0.00037782,2]
[398296209,1765501840750,-347.91407531,0.00037782,2]
[398296211,1765501840760,-508.84461059,0.00037782,2]
[398296213,1765501840770,-300.0,0.00037782,2]
[398296215,1765501840779,-300.0,0.00037782,2]
[398296217,1765501840788,-593.23310907,0.00037782,2]
[398296219,1765501840798,-362.86119627,0.00037782,2]
[398296221,1765501840808,-300.0,0.00037782,2]
[398296223,1765501840817,-300.0,0.00037782,2]
[398296225,1765501840828,-300.0,0.00037782,2]
[398296227,1765501840837,-480.8162296,0.00037783,30]
[398296229,1765501840850,-500.0,0.00037783,30]
[398296231,1765501840859,-873.8,0.000378,5]
[398296233,1765501840867,-500.0,0.00037808,60]
[398296235,1765501840877,-1000.0,0.00037833,10]
[398296236,1765501840887,-1000.0,0.00037833,10]
[398296238,1765501840896,-166.66,0.00037837,30]
[398296240,1765501840905,-500.0,0.00037945,60]
[398296242,1765501840915,-1000.0,0.0003797,10]
[398296244,1765501840925,-1000.0,0.0003797,10]
[398296246,1765501840934,-2000.0,0.00038,120]
[398296248,1765501840943,-1027.67845643,0.00038,7]
[398296250,1765501840952,-500.0,0.00038,45]
[398296252,1765501840962,-500.0,0.00038,45]
[398296254,1765501840971,-500.0,0.00038,45]
[398296256,1765501840980,-949.51347148,0.00038047,2]
[398296382,1765501842141,-245.48652852,0.00038047,2]
[398296384,1765501842150,-500.0,0.00038082,60]
[398296386,1765501842159,-1000.0,0.00038107,10]
[398296388,1765501842168,-1000.0,0.00038107,10]
[398296390,1765501842178,-164.46332683,0.00038139,2]
[398296392,1765501842187,-1000.39,0.0003816,120]
[398296394,1765501842196,-2.86303113,0.00038219,60]
[398296397,1765501842207,-497.13696887,0.00038219,60]
[398296399,1765501842217,-1000.0,0.00038244,10]
[398296401,1765501842232,-1000.0,0.00038244,10]
[398296403,1765501842240,-645.94776074,0.00038275,7]
[398296457,1765501842769,-306.66975513,0.00038275,7]
[398296543,1765501843806,-242.38248413,0.00038275,7]
[398296545,1765501843816,-875.58,0.0003828,5]
[398296547,1765501843826,-500.0,0.00038356,60]
[398296549,1765501843835,-590.95305586,0.00038356,120]
[398296551,1765501843850,-463.04694414,0.00038356,120]
[398296553,1765501843860,-1000.0,0.00038381,10]
[398296555,1765501843871,-1000.0,0.00038381,10]
[398296557,1765501843880,-1195.0,0.00038404,2]
[398296559,1765501843891,-219.94,0.00038479,14]
[398296561,1765501843901,-500.0,0.00038493,60]
[398296563,1765501843910,-507.0,0.000385,120]
[398296565,1765501843920,-1000.0,0.00038518,10]
[398296567,1765501843930,-1000.0,0.00038518,10]
[398296569,1765501843939,-1196.0,0.00038548,120]
[398296571,1765501843949,-166.66,0.00038572,30]
[398296573,1765501843958,-1000.0,0.00038588,7]
[398296575,1765501843967,-1195.0,0.00038621,2]
[398296577,1765501843976,-365.55849188,0.0003863,60]
[398296579,1765501843985,-1000.0,0.00038655,10]
[398296581,1765501843994,-1000.0,0.00038655,10]
[398296583,1765501844004,-1000.0,0.00038663,7]
[398296585,1765501844013,-1000.0,0.00038739,7]
[398296587,1765501844024,-164.46332683,0.00038762,2]
[398296589,1765501844033,-1000.0,0.00038791,7]
[398296591,1765501844042,-1000.0,0.00038792,10]
[398296593,1765501844051,-1000.0,0.00038792,10]
[398296595,1765501844064,-508.95520314,0.00038795,7]
[398296597,1765501844074,-1000.0,0.000388,2]
[398296599,1765501844084,-1082.50177315,0.00038823,2]
[398296601,1765501844093,-2500.0,0.00038823,2]
[398296603,1765501844102,-1000.0,0.00038823,2]
[398296605,1765501844112,-1000.0,0.00038827,7]
[398296615,1765501844192,-1125.4989778,0.00038829,2]
[398296617,1765501844201,-166.04,0.00038835,2]
[398296619,1765501844210,-1000.0,0.00038842,7]
[398296621,1765501844219,-1000.0,0.00038868,7]
[398296623,1765501844228,-480.8162296,0.0003888,120]
[398296625,1765501844237,-1000.39,0.0003888,120]
[398296627,1765501844246,-500.0,0.00038899,45]
[398296629,1765501844255,-500.0,0.00038899,45]
[398296631,1765501844264,-500.0,0.00038899,45]
[398296633,1765501844273,-500.0,0.00038899,45]
[398296635,1765501844283,-500.0,0.00038899,45]
[398296636,1765501844292,-500.0,0.00038899,45]
[398296638,1765501844301,-500.0,0.00038899,45]
[398296641,1765501844311,-500.0,0.00038899,45]
[398296642,1765501844320,-500.0,0.00038899,45]
[398296644,1765501844329,-500.0,0.00038899,45]
[398296646,1765501844339,-500.0,0.00038899,45]
[398296648,1765501844347,-500.0,0.00038899,45]
[398296650,1765501844356,-500.0,0.00038899,45]
[398296652,1765501844365,-500.0,0.00038899,45]
[398296654,1765501844375,-500.0,0.00038899,45]
[398296656,1765501844384,-500.0,0.00038899,45]
[398296658,1765501844393,-500.0,0.00038899,45]
[398296660,1765501844402,-500.0,0.00038899,45]
[398296662,1765501844411,-500.0,0.00038899,45]
[398296664,1765501844421,-500.0,0.00038899,45]
[398296666,1765501844430,-500.0,0.00038899,45]
[398296668,1765501844439,-500.0,0.00038899,45]
[398296670,1765501844448,-500.0,0.00038899,45]
[398296672,1765501844457,-500.0,0.00038899,45]
[398296674,1765501844466,-500.0,0.00038899,45]
[398296676,1765501844476,-500.0,0.00038899,45]
[398296678,1765501844485,-500.0,0.00038899,45]
[398296680,1765501844495,-500.0,0.00038899,45]
[398296682,1765501844504,-403.36684,0.000389,2]
[398296684,1765501844513,-1523.67629118,0.00038913,4]
[398296686,1765501844523,-500.0,0.00038923,30]
[398296688,1765501844532,-500.0,0.00038923,30]
[398296690,1765501844541,-500.0,0.00038923,30]
[398296692,1765501844550,-500.0,0.00038923,30]
[398296694,1765501844560,-500.0,0.00038923,30]
[398296696,1765501844569,-550.68929532,0.00038923,30]
[398296698,1765501844579,-500.0,0.00038923,30]
[398296700,1765501844588,-199.0,0.00038923,30]
[398296702,1765501844597,-500.0,0.00038923,30]
[398296703,1765501844607,-500.0,0.00038923,30]
[398296705,1765501844616,-651.58,0.00038923,30]
[398296708,1765501844626,-651.58,0.00038923,30]
[398296709,1765501844635,-500.0,0.00038923,30]
[398296711,1765501844644,-500.0,0.00038923,30]
[398296713,1765501844654,-500.0,0.00038923,30]
[398296715,1765501844664,-500.0,0.00038923,30]
[398296717,1765501844672,-205317.57680925,0.00038923,2]
[398296721,1765501844704,-4881.96307278,0.00038923,2]
[398296725,1765501844730,-1.70618687,0.00038923,2]
[398296727,1765501844742,-571.5202675,0.00038923,2]
[398296876,1765501846042,-242.0,0.00028917,2]
[398296878,1765501846051,-277.70719083,0.00038923,2]
[398296902,1765501846172,-18303.04462696,0.00038923,2]
[398296920,1765501846286,-10386.96310206,0.00038923,2]
[398297982,1765502000468,380.56,0.00013699,2]
[398297983,1765502009576,198.2,0.00025,120]
[398297984,1765502914290,267.09261281,0.000107,2]
[398297985,1765502921965,1267.06812533,0.0001,2]
[398297986,1765502956142,-200.0,0.0001634,2]
[398297987,1765502956163,-129.31778708,0.000166,2]
[398298008,1765503032232,-228.92484186,0.000166,2]
[398298010,1765503032241,-390.34075195,0.0001699,2]
[398298012,1765503032253,-125.70924805,0.0001699,2]
[398298014,1765503032262,-516.05,0.0001699,2]
[398298016,1765503032271,-0.7966634,0.0001699,2]
[398298018,1765503032283,-202.97637971,0.0001699,2]
[398298020,1765503032292,-1200.0,0.00016998,2]
[398298021,1765503032301,-300.0,0.00016999,2]
[398298022,1765503032312,-2012.2375087,0.00016999,2]
[398298023,1765503032321,-550.0,0.00016999,2]
[398298024,1765503032330,-151.15284829,0.00016999,2]
[398298025,1765503032340,-229.11357335,0.00016999,2]
[398298026,1765503032351,-190.20983661,0.00016999,2]
[398298027,1765503032361,-500.0,0.00016999,2]
[398298028,1765503032371,-267.44180776,0.00016999,2]
[398298029,1765503032381,-447.14245951,0.00016999,2]
[398298030,1765503032390,-220.24096924,0.00016999,2]
[398298031,1765503032400,-23.41022681,0.00016999,2]
[398298032,1765503032496,-558.60818729,0.00016999,2]
[398298033,1765503032506,-162.18755233,0.00016999,2]
[398298034,1765503032516,-500.0,0.00016999,2]
[398298035,1765503032527,-270.7417038,0.00016999,2]
[398298045,1765503038406,-229.2582962,0.00016999,2]
[398298046,1765503038416,-55.68661353,0.00016999,2]
[398298047,1765503038428,-444.31338647,0.00016999,2]
[398298048,1765503038438,-500.0,0.00016999,2]
[398298049,1765503038447,-500.0,0.00016999,2]
[398298050,1765503038458,-500.0,0.00016999,2]
[398298051,1765503038467,-516.53604308,0.00016999,2]
[398298052,1765503038477,-500.0,0.00016999,2]
[398298053,1765503038487,-500.0,0.00016999,2]
[398298054,1765503038496,-500.0,0.00016999,2]
[398298055,1765503038505,-500.0,0.00016999,2]
[398298056,1765503038515,-777.08835421,0.00017,2]
[398298057,1765503038525,-36256.11964385,0.00017,2]
[398298058,1765503038540,-502.96968672,0.00017,2]
[398298059,1765503038551,-118988.19317499,0.00017,2]
[398298062,1765503038597,-16163.5,0.00017,2]
[398298064,1765503038609,-859.83437079,0.00017,2]
[398298067,1765503038620,-10111.1220421,0.00017,2]
[398298171,1765503040591,-3338.0065717,0.00017,2]
[398298172,1765503040604,-523.86743007,0.00017,2]
[398298173,1765503040617,-682.81730511,0.00017,2]
[398298174,1765503040628,-649.97077486,0.00017,2]
[398298175,1765503041052,-439.30570007,0.00017,2]
[398298177,1765503043375,-489.64607935,0.00017,2]
[398298178,1765503043386,-485.305,0.00017,2]
[398298179,1765503043397,-283961.9818439,0.00017,2]
[398298182,1765503043476,-736.43301719,0.00017,2]
[398298183,1765503043585,-333.26323664,0.00017,2]
[398298184,1765503047078,-275629.35304845,0.00017,2]
[398298191,1765503152364,150.0,0.00024876,120]
[398298196,1765503490961,1169.98,0.00025,120]
[398298207,1765504231580,-233.85045807,0.00016438,2]
[398298208,1765504231590,-155.15,0.00016712,2]
[398298209,1765504231599,-1200.0,0.00016899,2]
[398298210,1765504231609,-229.42391069,0.000169,2]
[398298211,1765504231618,-467.46713722,0.000169,2]
[398298212,1765504231659,-603.28061345,0.000169,2]
[398298213,1765504231668,-228.51712288,0.000169,2]
[398298214,1765504231677,-1071.79093501,0.000169,2]
[398298216,1765504231686,-1817.14608197,0.000169,2]
[398298218,1765504231696,-161.08326641,0.000169,2]
[398298219,1765504231705,-203.77304311,0.0001699,2]
[398298220,1765504231714,-164.47,0.0001699,2]
[398298221,1765504231723,-151.0,0.00016997,2]
[398298222,1765504231733,-550.0,0.00016998,2]
[398298224,1765504231742,-300.0,0.00016999,2]
[398298226,1765504231751,-300.0,0.00016999,2]
[398298229,1765504231760,-300.0,0.00016999,2]
[398298230,1765504231770,-2676.154,0.00016999,2]
[398298233,1765504231780,-152.801,0.00016999,2]
[398298235,1765504231789,-500.0,0.00016999,2]
[398298237,1765504231798,-500.0,0.00016999,2]
[398298238,1765504231807,-620.1424577,0.00016999,2]
[398298241,1765504231817,-300.0,0.00016999,2]
[398298242,1765504231827,-300.0,0.00016999,2]
[398298244,1765504231836,-766.55,0.00016999,2]
[398298246,1765504231845,-766.55,0.00016999,2]
[398298249,1765504231855,-766.55,0.00016999,2]
[398298252,1765504231865,-766.55,0.00016999,2]
[398298254,1765504231875,-766.55,0.00016999,2]
[398298256,1765504231884,-500.0,0.00016999,2]
[398298258,1765504231893,-500.0,0.00016999,2]
[398298260,1765504231902,-500.0,0.00016999,2]
[398298262,1765504231912,-500.0,0.00016999,2]
[398298264,1765504231921,-500.0,0.00016999,2]
[398298266,1765504231930,-300.0,0.00016999,2]
[398298268,1765504231940,-300.0,0.00016999,2]
[398298270,1765504231950,-666.0,0.00016999,2]
[398298272,1765504231959,-500.0,0.00016999,2]
[398298274,1765504231969,-500.0,0.00016999,2]
[398298276,1765504231979,-500.0,0.00016999,2]
[398298278,1765504231988,-500.0,0.00016999,2]
[398298280,1765504231998,-183.91956436,0.00016999,2]
[398298282,1765504232008,-1000.0,0.00016999,2]
[398298284,1765504232018,-520.41586341,0.00016999,2]
[398298287,1765504232029,-946.84,0.00016999,2]
[398298289,1765504232038,-188.46043505,0.00016999,2]
[398298290,1765504232047,-500.0,0.00016999,2]
[398298292,1765504232057,-167.84270022,0.00016999,2]
[398298294,1765504232067,-500.0,0.00016999,2]
[398298296,1765504232076,-500.0,0.00016999,2]
[398298298,1765504232086,-500.0,0.00016999,2]
[398298301,1765504232096,-500.0,0.00016999,2]
[398298303,1765504232106,-500.0,0.00016999,2]
[398298305,1765504232115,-500.0,0.00016999,2]
[398298306,1765504232124,-500.0,0.00016999,2]
[398298308,1765504232134,-500.0,0.00016999,2]
[398298311,1765504232143,-500.0,0.00016999,2]
[398298313,1765504232153,-500.0,0.00016999,2]
[398298314,1765504232162,-500.0,0.00016999,2]
[398298317,1765504232172,-500.0,0.00016999,2]
[398298318,1765504232183,-500.0,0.00016999,2]
[398298320,1765504232192,-500.0,0.00016999,2]
[398298323,1765504232202,-500.0,0.00016999,2]
[398298325,1765504232211,-500.0,0.00016999,2]
[398298327,1765504232221,-500.0,0.00016999,2]
[398298328,1765504232230,-500.0,0.00016999,2]
[398298329,1765504232239,-500.0,0.00016999,2]
[398298330,1765504232249,-500.0,0.00016999,2]
[398298331,1765504232258,-500.0,0.00016999,2]
[398298332,1765504232268,-500.0,0.00016999,2]
[398298333,1765504232277,-500.0,0.00016999,2]
[398298334,1765504232287,-500.0,0.00016999,2]
[398298335,1765504232296,-500.0,0.00016999,2]
[398298336,1765504232305,-500.0,0.00016999,2]
[398298337,1765504232315,-500.0,0.00016999,2]
[398298338,1765504232324,-500.0,0.00016999,2]
[398298339,1765504232334,-500.0,0.00016999,2]
[398298340,1765504232343,-500.0,0.00016999,2]
[398298341,1765504232352,-500.0,0.00016999,2]
[398298342,1765504232362,-500.0,0.00016999,2]
[398298343,1765504232371,-500.0,0.00016999,2]
[398298344,1765504232381,-500.0,0.00016999,2]
[398298345,1765504232391,-500.0,0.00016999,2]
[398298346,1765504232400,-500.0,0.00016999,2]
[398298347,1765504232410,-500.0,0.00016999,2]
[398298348,1765504232419,-500.0,0.00016999,2]
[398298349,1765504232429,-500.0,0.00016999,2]
[398298350,1765504232438,-500.0,0.00016999,2]
[398298351,1765504232447,-500.0,0.00016999,2]
[398298352,1765504232457,-500.0,0.00016999,2]
[398298353,1765504232466,-646.39344178,0.00016999,2]
[398298354,1765504232475,-500.0,0.00016999,2]
[398298355,1765504232485,-500.0,0.00016999,2]
[398298356,1765504232495,-500.0,0.00016999,2]
[398298357,1765504232504,-500.0,0.00016999,2]
[398298358,1765504232514,-500.0,0.00016999,2]
[398298359,1765504232523,-500.0,0.00016999,2]